bitfinex/quotes_ETHUSD_20250914
["timestamp","ask_amount","ask_price","bid_price","bid_amount"]
[1757826552117,6.35811244,4670.7,4670.6,0.001]
[1757826553549,6.66211244,4670.7,4670.6,0.001]
[1757826556136,6.66236685,4670.7,4670.6,0.001]
[1757826560255,6.66242529,4670.7,4670.6,0.001]
[1757826561736,6.35842529,4670.7,4670.6,0.001]
[1757826562030,6.67112529,4670.7,4670.6,0.001]
[1757826562235,7.12762529,4670.7,4670.6,0.001]
[1757826563249,7.60242529,4670.7,4670.6,0.001]
[1757826563851,10.60242529,4670.7,4670.6,0.001]
[1757826564054,11.70647875,4670.7,4670.6,0.001]
[1757826566568,11.70646024,4670.7,4670.6,0.001]
[1757826569570,12.28322822,4670.7,4670.6,0.001]
[1757826570970,12.28301326,4670.7,4670.6,0.001]
[1757826571762,19.30301326,4670.7,4670.6,0.001]
[1757826574386,18.72634292,4670.7,4670.6,0.001]
[1757826577776,20.01034292,4670.7,4670.6,0.001]
[1757826577975,19.80988175,4670.7,4670.6,0.001]
[1757826578148,20.00999054,4670.7,4670.6,0.001]
[1757826581795,19.8899123,4670.7,4670.6,0.001]
[1757826581976,20.00997217,4670.7,4670.6,0.001]
[1757826583274,19.53517217,4670.7,4670.6,0.001]
[1757826583990,22.91977883,4670.7,4670.6,0.001]
[1757826584684,23.39457883,4670.7,4670.6,0.001]
[1757826585279,23.97124917,4670.7,4670.6,0.001]
[1757826585686,23.97127305,4670.7,4670.6,0.001]
[1757826586277,23.39460271,4670.7,4670.6,0.001]
[1757826586679,23.37270271,4670.7,4670.6,0.001]
[1757826587395,22.46330271,4670.7,4670.6,0.001]
[1757826587601,22.15060271,4670.7,4670.6,0.001]
[1757826588604,22.44020271,4670.7,4670.6,0.001]
[1757826589588,22.44032013,4670.7,4670.6,0.001]
[1757826590510,18.76011347,4670.7,4670.6,0.3028]
[1757826593071,18.76011347,4670.7,4670.6,0.7414]
[1757826593072,13.92011347,4670.7,4670.6,0.7414]
[1757826593412,17.47611347,4670.7,4670.6,0.7414]
[1757826593572,18.05335972,4670.7,4670.6,0.7414]
[1757826594898,18.05335972,4670.7,4670.6,0.3028]
[1757826595201,18.05335972,4670.7,4670.6,0.001]
[1757826595406,17.47611347,4670.7,4670.6,0.001]
[1757826598609,17.47611347,4670.7,4670.6,0.294]
[1757826598909,17.47611347,4670.7,4670.6,0.7326]
[1757826599116,17.47611347,4670.7,4670.6,1.2233]
[1757826599612,17.47611347,4670.7,4670.6,0.7326]
[1757826599808,13.92011347,4670.7,4670.6,0.294]
[1757826600010,17.1412528,4670.7,4670.6,1.2233]
[1757826601383,17.1412528,4670.7,4670.6,0.7326]
[1757826602006,13.5852528,4670.7,4670.6,0.7326]
[1757826602209,17.1412528,4670.7,4670.6,0.7326]
[1757826603291,13.5852528,4670.7,4670.6,0.7326]
[1757826603481,17.1412528,4670.7,4670.6,0.7326]
[1757826607990,17.1412528,4670.7,4670.6,1.2233]
[1757826608188,13.5852528,4670.7,4670.6,1.2233]
[1757826608388,17.1412528,4670.7,4670.6,1.2233]
[1757826608605,13.5852528,4670.7,4670.6,1.2233]
[1757826609039,17.1412528,4670.7,4670.6,1.2233]
[1757826609329,18.7852528,4670.7,4670.6,1.2233]
[1757826609908,13.5852528,4670.7,4670.6,1.2233]
[1757826610096,18.7852528,4670.7,4670.6,1.2233]
[1757826610518,13.5852528,4670.7,4670.6,1.2233]
[1757826610717,18.7852528,4670.7,4670.6,1.2233]
[1757826611797,18.7852528,4670.7,4670.6,0.7326]
[1757826612112,18.7852528,4670.7,4670.6,0.294]
[1757826612326,13.5852528,4670.7,4670.6,0.294]
[1757826612732,15.14065293,4670.7,4670.6,0.7847]
[1757826612929,15.14065293,4670.7,4670.6,1.2233]
[1757826616415,11.58565293,4670.7,4670.6,1.2233]
[1757826616620,15.14065293,4670.7,4670.6,1.2233]
[1757826618406,14.67931666,4670.7,4670.6,1.2233]
[1757826620547,7.65931666,4670.7,4670.6,1.2233]
[1757826621444,7.65931666,4670.7,4670.6,0.7326]
[1757826621751,7.96731666,4670.7,4670.6,0.001]
[1757826622872,7.96741775,4670.7,4670.6,0.001]
[1757826623720,7.65941775,4670.7,4670.6,0.001]
[1757826626346,7.96741775,4670.7,4670.6,0.001]
[1757826626539,4.41241775,4670.7,4670.6,0.001]
[1757826626752,7.96753526,4670.7,4670.6,0.001]
[1757826630461,7.65953526,4670.7,4670.6,0.001]
[1757826630667,7.65953526,4670.7,4670.6,0.7302]
[1757826631742,7.65953526,4670.7,4670.6,0.001]
[1757826631961,7.95603526,4670.7,4670.6,0.001]
[1757826633770,7.65953526,4670.7,4670.6,0.001]
[1757826635355,7.65953526,4670.7,4670.6,0.2999]
[1757826636977,1.96352856,4670.7,4670.6,1.1909]
[1757826637176,5.31820126,4670.7,4670.6,1.1909]
[1757826637385,5.51852856,4670.7,4670.6,1.1909]
[1757826638056,4.10453526,4670.7,4670.6,0.7302]
[1757826638254,7.45925416,4670.7,4670.6,0.7302]
[1757826638460,7.6596666,4670.7,4670.6,0.7302]
[1757826640581,7.6596666,4670.7,4670.6,0.2999]
[1757826641579,7.6596666,4670.7,4670.6,0.7302]
[1757826642795,4.1046666,4670.7,4670.6,0.7302]
[1757826642956,5.31824746,4670.7,4670.6,0.7302]
[1757826643357,1.9636599,4670.7,4670.6,1.9829]
[1757826643601,5.31824746,4670.7,4670.6,1.9829]
[1757826643805,5.198,4670.7,4670.6,1.9829]
[1757826644974,5.31826936,4670.7,4670.6,1.9829]
[1757826645170,5.198,4670.7,4670.6,1.9829]
[1757826645796,3.67425342,4670.7,4670.6,1.9829]
[1757826646091,3.554,4670.7,4670.6,1.9829]
[1757826646501,3.554,4670.7,4670.6,1.5222]
[1757826646804,0.002,4670.8,4670.7,0.792]
[1757826647000,3.556,4670.8,4670.7,0.792]
[1757826647207,0.1064,4670.7,4670.6,0.4313]
[1757826647502,0.1064,4670.7,4670.6,0.001]
[1757826647663,3.6604,4670.7,4670.6,0.2994]
[1757826647862,3.6604,4670.7,4670.6,0.7283]
[1757826649199,3.6604,4670.7,4670.6,0.001]
[1757826650001,3.6604,4670.7,4670.6,1.0914]
[1757826650681,0.1064,4670.7,4670.6,1.0914]
[1757826650888,3.6604,4670.7,4670.6,1.0914]
[1757826651295,0.1064,4670.7,4670.6,1.0914]
[1757826651974,3.6604,4670.7,4670.6,1.0914]
[1757826652176,0.1064,4670.7,4670.6,1.0914]
[1757826652505,3.6604,4670.7,4670.6,1.0914]
[1757826654208,0.1064,4670.7,4670.6,1.0914]
[1757826654596,3.6604,4670.7,4670.6,1.0914]
[1757826657311,3.6604,4670.7,4670.6,1.5664]
[1757826658128,3.6604,4670.7,4670.6,1.0914]
[1757826658129,0.1064,4670.7,4670.6,1.0914]
[1757826658720,3.6604,4670.7,4670.6,0.793]
[1757826660291,0.1064,4670.7,4670.6,0.793]
[1757826660512,3.6604,4670.7,4670.6,0.793]
[1757826660996,0.1064,4670.7,4670.6,0.793]
[1757826661424,3.6604,4670.7,4670.6,0.793]
[1757826661949,3.6604,4670.7,4670.6,1.0884]
[1757826663020,0.1064,4670.7,4670.6,1.0884]
[1757826663193,3.6604,4670.7,4670.6,1.0884]
[1757826664017,0.1064,4670.7,4670.6,1.0884]
[1757826664196,3.6604,4670.7,4670.6,1.0884]
[1757826664402,3.6604,4670.7,4670.6,1.5634]
[1757826665120,3.6604,4670.7,4670.6,1.0884]
[1757826666820,3.6604,4670.7,4670.6,0.793]
[1757826667119,3.9514,4670.7,4670.6,0.793]
[1757826667897,3.6604,4670.7,4670.6,0.793]
[1757826672328,3.78066697,4670.7,4670.6,0.793]
[1757826672631,3.77966697,4670.7,4670.6,0.793]
[1757826676237,3.77966697,4670.7,4670.6,1.0884]
[1757826676443,0.22675913,4670.7,4670.6,1.556]
[1757826676734,3.77975913,4670.7,4670.6,1.556]
[1757826678427,3.77975913,4670.7,4670.6,1.0884]
[1757826679131,3.77975913,4670.7,4670.6,0.793]
[1757826681841,3.77975913,4670.7,4670.6,1.1011]
[1757826682147,3.77975913,4670.7,4670.6,1.5687]
[1757826685846,0.22675913,4670.7,4670.6,1.5687]
[1757826686046,3.77975913,4670.7,4670.6,1.5687]
[1757826687722,0.22675913,4670.7,4670.6,2.0346]
[1757826687917,3.77975913,4670.7,4670.6,2.0346]
[1757826688313,3.6594,4670.7,4670.6,2.0346]
[1757826688926,3.6594,4670.7,4670.6,1.5687]
[1757826694023,3.6594,4670.7,4670.6,1.1011]
[1757826694357,3.958,4670.7,4670.6,0.793]
[1757826701329,3.6594,4670.7,4670.6,0.793]
[1757826705632,3.958,4670.7,4670.6,0.793]
[1757826706652,7.0171067,4670.7,4670.6,0.793]
[1757826706853,8.23627245,4670.7,4670.6,0.001]
[1757826707948,8.87873196,4670.7,4670.6,0.001]
[1757826709958,8.67817707,4670.7,4670.6,0.001]
[1757826710268,8.87852662,4670.7,4670.6,0.001]
[1757826720446,4.88062662,4670.7,4670.6,0.001]
[1757826720649,7.75907707,4670.7,4670.6,0.001]
[1757826720849,7.95942662,4670.7,4670.6,0.001]
[1757826724588,7.95942662,4670.7,4670.6,0.001]
[1757826725178,8.42862662,4670.7,4670.6,0.001]
[1757826727458,8.22827707,4670.7,4670.6,0.001]
[1757826728008,8.87306348,4670.7,4670.6,0.001]
[1757826728775,8.87307979,4670.7,4670.6,0.001]
[1757826728962,8.75296126,4670.7,4670.6,0.001]
[1757826729393,8.55276371,4670.7,4670.6,0.001]
[1757826729764,8.10796371,4670.7,4670.6,0.001]
[1757826730095,8.67289354,4670.7,4670.6,0.001]
[1757826730298,8.55276371,4670.7,4670.6,0.001]
[1757826732524,8.87320991,4670.7,4670.6,0.001]
[1757826732721,8.67293104,4670.7,4670.6,0.001]
[1757826732928,8.87320991,4670.7,4670.6,0.001]
[1757826733414,8.87324793,4670.7,4670.6,0.001]
[1757826734402,8.42844793,4670.7,4670.6,0.001]
[1757826738514,11.20006858,4670.7,4670.6,0.001]
[1757826738680,5.3385044,4670.7,4670.6,0.001]
[1757826738882,7.66064793,4670.7,4670.6,0.7254]
[1757826739085,6.76235043,4670.7,4670.6,0.7254]
[1757826739907,3.21035043,4670.7,4670.6,0.2896]
[1757826740112,6.76235043,4670.7,4670.6,0.2896]
[1757826742712,6.76253653,4670.7,4670.6,0.2896]
[1757826744724,6.76280735,4670.7,4670.6,0.7254]
[1757826745101,6.76280735,4670.7,4670.6,0.2896]
[1757826750034,6.76280944,4670.7,4670.6,0.2896]
[1757826752337,6.76281209,4670.7,4670.6,0.2896]
[1757826753539,6.76281209,4670.7,4670.6,0.7254]
[1757826754940,6.76281209,4670.7,4670.6,0.2896]
[1757826756340,6.76282963,4670.7,4670.6,0.2896]
[1757826758141,7.05012963,4670.7,4670.6,0.001]
[1757826758348,10.86832963,4670.7,4670.6,0.001]
[1757826758549,11.3303861,4670.7,4670.6,0.001]
[1757826758912,7.3052861,4670.7,4670.6,0.001]
[1757826759111,7.23505763,4670.7,4670.6,0.2896]
[1757826759332,6.65742963,4670.7,4670.6,0.7254]
[1757826760216,6.65742963,4670.7,4670.6,0.2896]
[1757826760635,6.65842963,4670.7,4670.6,0.2896]
[1757826764048,6.65834863,4670.7,4670.6,0.2896]
[1757826764560,6.65834843,4670.7,4670.6,0.2896]
[1757826765058,3.10434843,4670.7,4670.6,0.2896]
[1757826765260,6.65734843,4670.7,4670.6,0.2896]
[1757826766130,6.65734822,4670.7,4670.6,0.2896]
[1757826766338,6.65734822,4670.7,4670.6,0.001]
[1757826766521,6.94714822,4670.7,4670.6,0.001]
[1757826768067,6.94714748,4670.7,4670.6,0.001]
[1757826768271,8.59014748,4670.7,4670.6,0.001]
[1757826768454,5.03714748,4670.7,4670.6,0.001]
[1757826768654,8.59014748,4670.7,4670.6,0.001]
[1757826768966,8.30034748,4670.7,4670.6,0.001]
[1757826769581,8.18001698,4670.7,4670.6,0.001]
[1757826769786,8.30034755,4670.7,4670.6,0.001]
[1757826769972,8.30034755,4670.7,4670.6,0.2905]
[1757826771391,8.59014788,4670.7,4670.6,0.001]
[1757826772196,8.58914788,4670.7,4670.6,0.001]
[1757826773672,8.58914905,4670.7,4670.6,0.001]
[1757826774299,12.3032697,4670.7,4670.6,0.001]
[1757826774590,5.20940552,4670.7,4670.6,0.001]
[1757826774766,8.29934905,4670.7,4670.6,0.001]
[1757826776079,8.60324905,4670.7,4670.6,0.001]
[1757826778107,9.09744905,4670.7,4670.6,0.001]
[1757826778494,5.54544905,4670.7,4670.6,0.001]
[1757826778696,12.3173697,4670.7,4670.6,0.001]
[1757826778918,12.77942617,4670.7,4670.6,0.001]
[1757826780109,13.35706392,4670.7,4670.6,0.001]
[1757826780986,23.37706392,4670.7,4670.6,0.001]
[1757826781186,23.56346464,4670.7,4670.6,0.001]
[1757826781585,22.79943592,4670.7,4670.6,0.001]
[1757826782384,25.57105657,4670.7,4670.6,0.001]
[1757826782611,26.33508529,4670.7,4670.6,0.001]
[1757826782921,25.57105657,4670.7,4670.6,0.001]
[1757826783108,26.85505657,4670.7,4670.6,0.001]
[1757826783282,24.08343592,4670.7,4670.6,0.001]
[1757826783481,24.85306105,4670.7,4670.6,0.001]
[1757826785407,24.85293617,4670.7,4670.6,0.001]
[1757826786712,27.62455682,4670.7,4670.6,0.001]
[1757826787109,24.40463617,4670.7,4670.6,0.001]
[1757826787307,24.85293617,4670.7,4670.6,0.001]
[1757826787685,21.30093617,4670.7,4670.6,0.001]
[1757826787885,24.85293617,4670.7,4670.6,0.001]
[1757826788389,24.08331104,4670.7,4670.6,0.001]
[1757826789509,24.08325964,4670.7,4670.6,0.001]
[1757826792624,20.08295964,4670.7,4670.6,0.001]
[1757826792928,23.76254333,4670.7,4670.6,0.001]
[1757826793314,23.96278046,4670.7,4670.6,0.001]
[1757826793629,23.88268561,4670.7,4670.6,0.001]
[1757826793988,20.55115246,4670.7,4670.6,0.001]
[1757826794228,21.23214333,4670.7,4670.6,0.287]
[1757826794393,21.23214333,4670.7,4670.6,0.001]
[1757826794794,21.55251535,4670.7,4670.6,0.001]
[1757826798428,22.16681741,4670.7,4670.6,0.001]
[1757826798896,22.16682023,4670.7,4670.6,0.001]
[1757826802833,22.16688396,4670.7,4670.6,0.001]
[1757826803534,22.16690042,4670.7,4670.6,0.001]
[1757826806300,23.22582555,4670.7,4670.6,0.001]
[1757826808064,24.16912555,4670.7,4670.6,0.001]
[1757826808244,23.39950042,4670.7,4670.6,0.001]
[1757826808960,22.93460042,4670.7,4670.6,0.001]
[1757826809136,23.39950042,4670.7,4670.6,0.001]
[1757826810682,24.68350042,4670.7,4670.6,0.001]
[1757826811564,24.68370034,4670.7,4670.6,0.001]
[1757826811987,24.21880034,4670.7,4670.6,0.001]
[1757826812666,20.18840034,4670.7,4670.6,0.001]
[1757826812866,23.74040034,4670.7,4670.6,0.001]
[1757826813879,24.21880034,4670.7,4670.6,0.001]
[1757826818100,24.21881294,4670.7,4670.6,0.001]
[1757826818795,23.74041294,4670.7,4670.6,0.001]
[1757826821103,23.45146497,4670.7,4670.6,0.001]
[1757826821309,23.45146497,4670.7,4670.6,0.3143]
[1757826821822,23.45146799,4670.7,4670.6,0.3143]
[1757826823287,19.89946799,4670.7,4670.6,0.3143]
[1757826823488,18.78154528,4670.7,4670.6,1.2629]
[1757826825435,15.23054528,4670.7,4670.6,1.2629]
[1757826825593,15.78254528,4670.7,4670.6,1.2629]
[1757826825802,18.78254012,4670.7,4670.6,1.2629]
[1757826826317,19.36009781,4670.7,4670.6,1.2629]
[1757826828328,19.360003,4670.7,4670.6,1.2629]
[1757826829489,18.78244531,4670.7,4670.6,0.3143]
[1757826829693,19.670903,4670.7,4670.6,0.001]
[1757826829911,20.127803,4670.7,4670.6,0.001]
[1757826830117,19.09333285,4670.7,4670.6,0.001]
[1757826830318,19.09332447,4670.7,4670.6,0.001]
[1757826832008,20.57308216,4670.7,4670.6,0.001]
[1757826832819,20.12778216,4670.7,4670.6,0.001]
[1757826833004,19.67088216,4670.7,4670.6,0.001]
[1757826833613,19.65578216,4670.7,4670.6,0.001]
[1757826834916,19.65478216,4670.7,4670.6,0.001]
[1757826835493,16.10378216,4670.7,4670.6,0.001]
[1757826835715,19.65478216,4670.7,4670.6,0.001]
[1757826836814,20.55828216,4670.7,4670.6,0.001]
[1757826837021,20.55805381,4670.7,4670.6,0.001]
[1757826837212,20.10915381,4670.7,4670.6,0.001]
[1757826838421,19.35875381,4670.7,4670.6,0.2868]
[1757826839122,19.35875381,4670.7,4670.6,0.001]
[1757826840627,15.23019612,4670.7,4670.6,1.2133]
[1757826840832,18.78119612,4670.7,4670.6,1.2133]
[1757826841126,15.13873661,4670.7,4670.6,1.2133]
[1757826842303,14.67668014,4670.7,4670.6,1.2133]
[1757826842697,11.12568014,4670.7,4670.6,1.2133]
[1757826843019,14.67668014,4670.7,4670.6,1.2133]
[1757826844801,12.53567344,4670.7,4670.6,1.2133]
[1757826845121,14.67668014,4670.7,4670.6,1.2133]
[1757826852602,14.67668014,4670.7,4670.6,0.2868]
[1757826852912,14.67668014,4670.7,4670.6,0.731]
[1757826853118,14.67652907,4670.7,4670.6,0.731]
[1757826853317,14.67652907,4670.7,4670.6,0.001]
[1757826854037,14.97232907,4670.7,4670.6,0.001]
[1757826854243,15.87582907,4670.7,4670.6,0.001]
[1757826854541,19.33706336,4670.7,4670.6,0.001]
[1757826854712,19.42274757,4670.7,4670.6,0.001]
[1757826855028,19.1022252,4670.7,4670.6,0.001]
[1757826856222,19.22237432,4670.7,4670.6,0.001]
[1757826856425,19.42261841,4670.7,4670.6,0.001]
[1757826856746,21.08393201,4670.7,4670.6,0.001]
[1757826857254,20.3862252,4670.7,4670.6,0.001]
[1757826857418,20.96288103,4670.7,4670.6,0.001]
[1757826857614,20.3862252,4670.7,4670.6,0.001]
[1757826857916,21.15663733,4670.7,4670.6,0.001]
[1757826859712,2.14115969,4670.4,4669.8,1e-08]
[1757826860047,6.96243155,4669.9,4669.8,1e-08]
[1757826860248,13.26689531,4669.9,4669.8,1e-08]
[1757826860539,14.0376406,4669.9,4669.8,1e-08]
[1757826860950,10.12334573,4669.9,4669.8,1e-08]
[1757826861250,13.67434573,4669.9,4669.8,1e-08]
[1757826861724,14.12334573,4669.9,4669.8,1e-08]
[1757826862320,13.09783689,4669.9,4669.8,1e-08]
[1757826862651,13.54683689,4669.9,4669.8,1e-08]
[1757826862836,13.09783689,4669.9,4669.8,1e-08]
[1757826863233,13.54683689,4669.9,4669.8,1e-08]
[1757826863559,13.09783689,4669.9,4669.8,1e-08]
[1757826863775,13.54683689,4669.9,4669.8,1e-08]
[1757826864450,13.09783689,4669.9,4669.8,1e-08]
[1757826864758,13.54683689,4669.9,4669.8,1e-08]
[1757826865114,13.54605866,4669.9,4669.8,1e-08]
[1757826865558,20.56605866,4669.9,4669.8,1e-08]
[1757826866238,17.01505866,4669.9,4669.8,1e-08]
[1757826866440,20.56605866,4669.9,4669.8,1e-08]
[1757826866751,20.11705866,4669.9,4669.8,1e-08]
[1757826866972,20.56605866,4669.9,4669.8,1e-08]
[1757826867128,20.56521985,4669.9,4669.8,1e-08]
[1757826868026,21.85021985,4669.9,4669.8,1e-08]
[1757826868468,22.42527801,4669.9,4669.8,1e-08]
[1757826870122,21.85021985,4669.9,4669.8,1e-08]
[1757826870542,21.40121985,4669.9,4669.8,1e-08]
[1757826870761,20.11721985,4669.9,4669.8,1e-08]
[1757826870966,20.21944727,4669.9,4669.8,1e-08]
[1757826871368,20.69204727,4669.9,4669.8,1e-08]
[1757826871568,22.42604727,4669.9,4669.8,1e-08]
[1757826872434,21.21274727,4669.9,4669.8,1e-08]
[1757826872637,20.63791985,4669.9,4669.8,0.73290001]
[1757826872863,15.80091985,4669.9,4669.8,0.73290001]
[1757826873169,19.35291985,4669.9,4669.8,1.20320001]
[1757826873548,19.35291985,4669.9,4669.8,1e-08]
[1757826874369,19.64461985,4669.9,4669.8,1e-08]
[1757826874872,20.11721985,4669.9,4669.8,1e-08]
[1757826877473,20.56621985,4669.9,4669.8,1e-08]
[1757826877657,22.42604727,4669.9,4669.8,1e-08]
[1757826877972,21.21274727,4669.9,4669.8,1e-08]
[1757826878156,21.50444727,4669.9,4669.8,1e-08]
[1757826878967,21.97704727,4669.9,4669.8,1e-08]
[1757826879278,22.42604727,4669.9,4669.8,1e-08]
[1757826879478,21.85121985,4669.9,4669.8,1e-08]
[1757826879654,20.63791985,4669.9,4669.8,0.29600001]
[1757826879980,20.63791985,4669.9,4669.8,1e-08]
[1757826879981,21.21306308,4669.9,4669.8,1e-08]
[1757826880477,20.63791985,4669.9,4669.8,1e-08]
[1757826882076,20.92970058,4669.9,4669.8,1e-08]
[1757826882671,19.35300058,4669.9,4669.8,1e-08]
[1757826882873,2.14146519,4669.7,4669.6,0.001]
[1757826883047,18.05312056,4669.7,4669.6,0.001]
[1757826883245,18.71331157,4669.7,4669.6,0.297]
[1757826883458,18.13755346,4669.7,4669.6,0.297]
[1757826883678,18.60885346,4669.7,4669.6,0.297]
[1757826884487,18.60885346,4669.7,4669.6,0.001]
[1757826886395,19.37753191,4669.7,4669.6,0.001]
[1757826887394,18.60885346,4669.7,4669.6,0.001]
[1757826889894,18.28922125,4669.7,4669.6,0.001]
[1757826890197,18.6100643,4669.7,4669.6,0.001]
[1757826893096,18.9127643,4669.7,4669.6,0.001]
[1757826893310,19.3824643,4669.7,4669.6,0.001]
[1757826893829,18.91279225,4669.7,4669.6,0.001]
[1757826894918,18.79244816,4669.7,4669.6,0.001]
[1757826895089,19.27473879,4669.7,4669.6,0.001]
[1757826895415,18.13474302,4669.7,4669.6,0.001]
[1757826895620,21.68674302,4669.7,4669.6,0.001]
[1757826895815,22.14624302,4669.7,4669.6,0.001]
[1757826896221,2.14160277,4669.4,4669.3,0.001]
[1757826896422,6.00676497,4669.4,4669.3,0.001]
[1757826896627,9.55876497,4669.4,4669.3,0.001]
[1757826896915,9.99036497,4669.4,4669.3,0.001]
[1757826897116,10.27626497,4669.4,4669.3,0.001]
[1757826897419,10.45082103,4669.4,4669.3,1.2107]
[1757826897712,9.99036497,4669.4,4669.3,1.2107]
[1757826898122,17.01036497,4669.4,4669.3,1.2107]
[1757826898303,17.47082103,4669.4,4669.3,1.2107]
[1757826900487,13.91882103,4669.4,4669.3,1.2107]
[1757826900822,17.47082103,4669.4,4669.3,0.7791]
[1757826901028,17.47082103,4669.4,4669.3,0.2915]
[1757826901395,17.47082103,4669.4,4669.3,0.001]
[1757826901592,17.47082103,4669.4,4669.3,0.2915]
[1757826902209,11.14498732,4669.4,4669.3,1.2107]
[1757826902404,12.94304689,4669.4,4669.3,1.2107]
[1757826902610,17.07296536,4669.4,4669.3,1.2107]
[1757826904800,17.07296536,4669.4,4669.3,0.7791]
[1757826905129,17.07296536,4669.4,4669.3,1.2107]
[1757826905130,13.49504689,4669.4,4669.3,1.2107]
[1757826907728,13.49494555,4669.4,4669.3,1.2107]
[1757826908738,13.4949304,4669.4,4669.3,1.2107]
[1757826908954,13.49473624,4669.4,4669.3,1.2107]
[1757826915482,7.80113347,4669.4,4669.3,1.2107]
[1757826915659,7.80113347,4669.4,4669.3,2.0027]
[1757826915660,13.49468157,4669.4,4669.3,2.0027]
[1757826915853,0.7810788,4669.4,4669.3,2.0027]
[1757826916053,3.552,4669.4,4669.3,2.20307]
[1757826916354,3.87262274,4669.4,4669.3,2.20307]
[1757826916562,5.69360277,4669.4,4669.3,2.0027]
[1757826916763,6.01422551,4669.4,4669.3,2.0027]
[1757826917254,6.01422551,4669.4,4669.3,1.5711]
[1757826917669,6.01422551,4669.4,4669.3,2.0151]
[1757826917867,6.01422551,4669.4,4669.3,1.0835]
[1757826918160,6.33002551,4669.4,4669.3,0.001]
[1757826918372,6.79332551,4669.4,4669.3,0.001]
[1757826918684,7.747334,4669.4,4669.3,0.001]
[1757826919593,8.898734,4669.4,4669.3,0.001]
[1757826919968,8.98443711,4669.4,4669.3,0.001]
[1757826920301,4.24701126,4669.4,4669.3,0.7679]
[1757826920504,3.78560277,4669.4,4669.3,2.0039]
[1757826920687,7.33760277,4669.4,4669.3,2.0039]
[1757826920895,7.53788103,4669.4,4669.3,2.0039]
[1757826921397,7.53788103,4669.4,4669.3,1.5599]
[1757826921600,7.65805178,4669.4,4669.3,1.5599]
[1757826922001,5.196,4669.4,4669.3,2.0039]
[1757826922204,7.33760277,4669.4,4669.3,1.1037]
[1757826922368,7.33760277,4669.4,4669.3,1.5599]
[1757826922576,7.65805373,4669.4,4669.3,0.793]
[1757826922765,7.97385373,4669.4,4669.3,0.001]
[1757826922988,7.65805373,4669.4,4669.3,0.3117]
[1757826923500,7.97385373,4669.4,4669.3,0.001]
[1757826924171,8.92975373,4669.4,4669.3,0.001]
[1757826924987,8.9297721,4669.4,4669.3,0.001]
[1757826925498,8.92979199,4669.4,4669.3,0.001]
[1757826926100,9.39131085,4669.4,4669.3,0.001]
[1757826926274,12.39131085,4669.4,4669.3,0.001]
[1757826926474,12.96820942,4669.4,4669.3,0.001]
[1757826926674,13.05391437,4669.4,4669.3,0.001]
[1757826928718,13.05396852,4669.4,4669.3,0.001]
[1757826929279,12.09806852,4669.4,4669.3,0.001]
[1757826929813,12.56136852,4669.4,4669.3,0.001]
[1757826930380,13.05396852,4669.4,4669.3,0.001]
[1757826931701,13.05397667,4669.4,4669.3,0.001]
[1757826937393,8.23027667,4669.4,4669.3,0.001]
[1757826937598,11.78227667,4669.4,4669.3,0.3117]
[1757826938494,8.23027667,4669.4,4669.3,0.3117]
[1757826938688,11.32175781,4669.4,4669.3,0.3117]
[1757826938888,11.78327667,4669.4,4669.3,0.3117]
[1757826940083,11.2063781,4669.4,4669.3,0.3117]
[1757826940720,7.6533781,4669.4,4669.3,0.3117]
[1757826940917,7.19185924,4669.4,4669.3,0.7679]
[1757826941222,10.65915429,4669.4,4669.3,1.2119]
[1757826941420,11.12067315,4669.4,4669.3,1.2119]
[1757826942197,7.56767315,4669.4,4669.3,1.2119]
[1757826942518,10.65915429,4669.4,4669.3,1.2119]
[1757826942722,11.12067315,4669.4,4669.3,1.2119]
[1757826943018,8.12067315,4669.4,4669.3,1.2119]
[1757826943218,7.65915429,4669.4,4669.3,1.2119]
[1757826943921,7.65915429,4669.4,4669.3,0.3117]
[1757826946499,7.65913847,4669.4,4669.3,0.3117]
[1757826947727,7.65923413,4669.4,4669.3,0.3117]
[1757826949527,7.65923413,4669.4,4669.3,0.001]
[1757826949942,7.65923413,4669.4,4669.3,0.3059]
[1757826952131,7.65923413,4669.4,4669.3,0.001]
[1757826954828,7.97553413,4669.4,4669.3,0.001]
[1757826955538,7.97453413,4669.4,4669.3,0.001]
[1757826955746,8.43723413,4669.4,4669.3,0.001]
[1757826955948,8.90443413,4669.4,4669.3,0.001]
[1757826956417,9.36595299,4669.4,4669.3,0.001]
[1757826957354,8.43605299,4669.4,4669.3,0.001]
[1757826957535,8.52175409,4669.4,4669.3,0.001]
[1757826957857,8.52209504,4669.4,4669.3,0.001]
[1757826958247,8.98929504,4669.4,4669.3,0.001]
[1757826959071,8.98479504,4669.4,4669.3,0.001]
[1757826959248,8.20579504,4669.4,4669.3,0.001]
[1757826959568,8.98929504,4669.4,4669.3,0.001]
[1757826959862,9.45199504,4669.4,4669.3,0.001]
[1757826960066,8.98929504,4669.4,4669.3,0.001]
[1757826960370,8.52209504,4669.4,4669.3,0.001]
[1757826961473,8.20579504,4669.4,4669.3,0.3031]
[1757826961639,7.74393523,4669.4,4669.3,0.001]
[1757826961954,8.06023523,4669.4,4669.3,0.001]
[1757826962267,8.99013523,4669.4,4669.3,0.001]
[1757826962472,13.0293198,4669.4,4669.3,0.001]
[1757826962676,12.45199504,4669.4,4669.3,0.001]
[1757826963406,19.47199504,4669.4,4669.3,0.001]
[1757826966391,20.24147899,4669.4,4669.3,0.001]
[1757826969173,20.24142324,4669.4,4669.3,0.001]
[1757826970386,20.24139183,4669.4,4669.3,0.001]
[1757826973267,21.52639183,4669.4,4669.3,0.001]
[1757826973467,19.31149183,4669.4,4669.3,0.001]
[1757826973871,19.77419183,4669.4,4669.3,0.001]
[1757826975102,18.99519183,4669.4,4669.3,0.3031]